{"text_format":"3","workbook":"xlsx","n_sheets":1,"sheets":["Uppstartskostnader"],"not_rendered":{"defined_names":1},"read":"whole","date_system":"1900"}

{"sheet":"Uppstartskostnader","index":0,"n_rows":120,"n_cols":4,"rows_kept":120,"merged":[[1,1,1,3],[60,1,60,3],[82,1,82,3]]}
["UPPSTARTSKOSTNADER",null,null,"AB FÖRETAGETS NAMN"]
[null,"EN KOMMENTAR INNAN DU ANVÄNDER DET HÄR KALKYLBLADET\nNästan alla som någonsin har startat ett företag har underskattat kostnaderna och sedan ställts inför problemen med otillräckligt kapital. Nyckeln till att undvika den här fallgropen är att göra noggranna efterforskningar och planer. Vår mall Uppstartskostnader vägleder dig genom processen.\n\nBÖRJA MED ATT UPPSKATTA KOSTNADERNA\nVad kommer det att kosta för att få igång ditt företag?  Här är det viktigt att du är noga med detaljerna. Gör en lista över allt du behöver köpa in under varje kostnadskategori. Det omfattar både materiella tillgångar (till exempel utrustning, lager) och tjänster (till exempel ombyggnad, försäkring). Ta sedan reda på var du kan köpa dessa varor eller tjänster. Kolla upp mer än en leverantör, till exempel med jämförelsetjänster. Titta inte bara på priset; villkor, leverans, tillförlitlighet och service är också viktigt. "]
[]
[null,"UPPSTARTSKOSTNADER"]
[null,"BYGGNADER/FASTIGHETER"," ","BELOPP"]
[null,"Inköp",null,{"v":0,"d":"0.00 kr"}]
[null,"Nybyggnad",null,{"v":0,"d":"0.00 kr"}]
[null,"Ombyggnad",null,{"v":0,"d":"0.00 kr"}]
[null,"Annat",null,{"v":0,"d":"0.00 kr"}]
[null,"Summa",null,{"$f":"SUBTOTAL(109,Fastighet[BELOPP])","v":{"v":0,"d":"0.00 kr"}}]
[]
[null,"FÖRBÄTTRINGAR AV HYRD LOKAL"," ","BELOPP"]
[null,"Objekt 1",null,{"v":0,"d":"0.00 kr"}]
[null,"Objekt 2",null,{"v":0,"d":"0.00 kr"}]
[null,"Objekt 3",null,{"v":0,"d":"0.00 kr"}]
[null,"Objekt 4",null,{"v":0,"d":"0.00 kr"}]
[null,"Summa",null,{"$f":"SUBTOTAL(109,Förbättringar[BELOPP])","v":{"v":0,"d":"0.00 kr"}}]
[]
[null,"LISTA ÖVER VARAKTIGA PRODUKTIONSMEDEL"," ","BELOPP"]
[null,"Möbler",null,{"v":0,"d":"0.00 kr"}]
[null,"Utrustning",null,{"v":0,"d":"0.00 kr"}]
[null,"Fasta inventarier",null,{"v":0,"d":"0.00 kr"}]
[null,"Maskinpark",null,{"v":0,"d":"0.00 kr"}]
[null,"Annat",null,{"v":0,"d":"0.00 kr"}]
[null,"Summa",null,{"$f":"SUBTOTAL(109,Kapital[BELOPP])","v":{"v":0,"d":"0.00 kr"}}]
[]
[null,"LOKAL- OCH ADMINISTRATIONSKOSTNADER"," ","BELOPP"]
[null,"Hyra",null,{"v":0,"d":"0.00 kr"}]
[null,"Samhällstjänster",null,{"v":0,"d":"0.00 kr"}]
[null,"Advokat- och redovisningskostnader",null,{"v":0,"d":"0.00 kr"}]
[null,"Förbetald försäkring",null,{"v":0,"d":"0.00 kr"}]
[null,"Löner före öppning ",null,{"v":0,"d":"0.00 kr"}]
[null,"Annat",null,{"v":0,"d":"0.00 kr"}]
[null,"Summa",null,{"$f":"SUBTOTAL(109,Adminkostnader[BELOPP])","v":{"v":0,"d":"0.00 kr"}}]
[]
[null,"LAGER ENLIGT INGÅENDE BALANS"," ","BELOPP"]
[null,"Kategori 1",null,{"v":0,"d":"0.00 kr"}]
[null,"Kategori 2",null,{"v":0,"d":"0.00 kr"}]
[null,"Kategori 3",null,{"v":0,"d":"0.00 kr"}]
[null,"Kategori 4",null,{"v":0,"d":"0.00 kr"}]
[null,"Kategori 5",null,{"v":0,"d":"0.00 kr"}]
[null,"Summa",null,{"$f":"SUBTOTAL(109,LagerEnligtIngåendeBalans[BELOPP])","v":{"v":0,"d":"0.00 kr"}}]
[]
[null,"ANNONS- OCH KAMPANJKOSTNADER"," ","BELOPP"]
[null,"Annonsering",null,{"v":0,"d":"0.00 kr"}]
[null,"Skyltar",null,{"v":0,"d":"0.00 kr"}]
[null,"Trycksaker",null,{"v":0,"d":"0.00 kr"}]
[null,"Resor/underhållning",null,{"v":0,"d":"0.00 kr"}]
[null,"Övrigt/andra kategorier",null,{"v":0,"d":"0.00 kr"}]
[null,"Summa",null,{"$f":"SUBTOTAL(109,Kampanjkostnader[BELOPP])","v":{"v":0,"d":"0.00 kr"}}]
[]
[null,"ÖVRIGA UTGIFTER"," ","BELOPP"]
[null,"Annan utgift 1",null,{"v":0,"d":"0.00 kr"}]
[null,"Annan utgift 2",null,{"v":0,"d":"0.00 kr"}]
[null,"Summa",null,{"$f":"SUBTOTAL(109,ÖvrigaUtgifter[BELOPP])","v":{"v":0,"d":"0.00 kr"}}]
[]
[null,"Reserver för oförutsedda utgifter",null,{"v":0,"d":"0.00 kr"}]
[]
[null,"Rörelsekapital ",null,{"v":0,"d":"0.00 kr"}]
[]
[null,"LÄGG TILL RESERV FÖR OFÖRUTSEDDA UTGIFTER\nSe till att förklara hur du har kommit fram till det belopp du lägger i den här reserven. \n\nFASTSTÄLL KASSAFLÖDET\nDu kan inte öppna med ett tomt bankkonto. Du behöver en buffert för att klara utgifter medan verksamheten kommer igång. Så småningom ska du göra en 12 månaders kassaflödesprognos. Det är där du räknar ut uppskattat behov av rörelsekapital. För tillfället kan du antingen lämna den här raden tom eller föra in en ungefärlig gissning. När du har färdigställt ditt kassaflöde kan du komma tillbaka och ange det noggrant framtagna beloppet.\n\nANGE DINA FINANSIERINGSKÄLLOR\nNu när du har beräknat hur mycket kapital som behövs för uppstarten ska du titta närmare på den övre delen av kalkylbladet. Ange de belopp du själv investerar, hur mycket som tillförs från partner eller investerare och hur mycket som kommer från lån."]
[]
[null,"FINANSIERINGSKÄLLOR"]
[null,"ÄGARNAS INVESTERING (NAMN OCH ANDEL)"," ","BELOPP"]
[null,"Ditt namn och din andel",null,{"v":0,"d":"0.00 kr"}]
[null,"Annan investerare",null,{"v":0,"d":"0.00 kr"}]
[null,"Annan investerare",null,{"v":0,"d":"0.00 kr"}]
[null,"Annan investerare",null,{"v":0,"d":"0.00 kr"}]
[null,"Summa",null,{"$f":"SUBTOTAL(109,ÄgaresInvesteringar[BELOPP])","v":{"v":0,"d":"0.00 kr"}}]
[]
[null,"BANKLÅN"," ","BELOPP"]
[null,"Bank 1",null,{"v":0,"d":"0.00 kr"}]
[null,"Bank 2",null,{"v":0,"d":"0.00 kr"}]
[null,"Bank 3",null,{"v":0,"d":"0.00 kr"}]
[null,"Bank 4",null,{"v":0,"d":"0.00 kr"}]
[null,"Summa",null,{"$f":"SUBTOTAL(109,Banklån[BELOPP])","v":{"v":0,"d":"0.00 kr"}}]
[]
[null,"ANDRA LÅN"," ","BELOPP"]
[null,"Källa 1",null,{"v":0,"d":"0.00 kr"}]
[null,"Källa 2",null,{"v":0,"d":"0.00 kr"}]
[null,"Summa",null,{"$f":"SUBTOTAL(109,AndraLån[BELOPP])","v":{"v":0,"d":"0.00 kr"}}]
[]
[null,"LÄMNA BEVIS FÖR SÄKERHET\nOm du ska använda den här planen som underlag för ett banklån ska du använda avsnittet nästan längst ned för att visa vilka tillgångar som erbjuds som säkerhet för lånet och uppskattat värde för dessa objekt. Var beredd att kunna uppvisa något som styrker dina värderingar av säkerhetsvärden."]
[]
[null,"SAMMANFATTNING"]
[null,"FINANSIERING"," ","TOTALSUMMOR"]
[null,"Ägarnas och andra investeringar",null,{"$f":"ÄgaresInvesteringar[[#Totals],[BELOPP]]","v":{"v":0,"d":"0.00 kr"}}]
[null,"Banklån",null,{"$f":"Banklån[[#Totals],[BELOPP]]","v":{"v":0,"d":"0.00 kr"}}]
[null,"Andra lån",null,{"$f":"AndraLån[[#Totals],[BELOPP]]","v":{"v":0,"d":"0.00 kr"}}]
[null,"Summa",null,{"$f":"SUBTOTAL(109,Finanseringskällor[TOTALSUMMOR])","v":{"v":0,"d":"0.00 kr"}}]
[]
[null,"UPPSTARTSKOSTNADER"," ","TOTALSUMMOR"]
[null,"Byggnader/fastigheter",null,{"$f":"Fastighet[[#Totals],[BELOPP]]","v":{"v":0,"d":"0.00 kr"}}]
[null,"Förbättringar av hyrd lokal",null,{"$f":"Förbättringar[[#Totals],[BELOPP]]","v":{"v":0,"d":"0.00 kr"}}]
[null,"Varaktiga produktionsmedel",null,{"$f":"Kapital[[#Totals],[BELOPP]]","v":{"v":0,"d":"0.00 kr"}}]
[null,"Lokal-/administrationskostnader",null,{"$f":"Adminkostnader[[#Totals],[BELOPP]]","v":{"v":0,"d":"0.00 kr"}}]
[null,"Lager enligt ingående balans",null,{"$f":"LagerEnligtIngåendeBalans[[#Totals],[BELOPP]]","v":{"v":0,"d":"0.00 kr"}}]
[null,"Annons-/kampanjkostnader",null,{"$f":"Kampanjkostnader[[#Totals],[BELOPP]]","v":{"v":0,"d":"0.00 kr"}}]
[null,"Övriga utgifter",null,{"$f":"ÖvrigaUtgifter[[#Totals],[BELOPP]]","v":{"v":0,"d":"0.00 kr"}}]
[null,"Reserv",null,{"$f":"SUM(Uppstartskostnader!$C$57)","v":{"v":0,"d":"0.00 kr"}}]
[null,"Rörelsekapital",null,{"$f":"SUM(Uppstartskostnader!$C$59)","v":{"v":0,"d":"0.00 kr"}}]
[null,"Summa",null,{"$f":"SUBTOTAL(109,Uppstartskostnader[TOTALSUMMOR])","v":{"v":0,"d":"0.00 kr"}}]
[]
[null,"SÄKERHET FÖR LÅNEFÖRSLAG"]
[null,"SÄKERHET FÖR LÅN","BESKRIVNING","VÄRDE"]
[null,"Fastigheter",null,{"v":0,"d":"0.00 kr"}]
[null,"Annan säkerhet",null,{"v":0,"d":"0.00 kr"}]
[null,"Annan säkerhet",null,{"v":0,"d":"0.00 kr"}]
[null,"Annan säkerhet",null,{"v":0,"d":"0.00 kr"}]
[null,"Summa",null,{"$f":"SUBTOTAL(109,Säkerhet[VÄRDE])","v":{"v":0,"d":"0.00 kr"}}]
[]
[null,"ÄGARE"," ","  "]
[null,"Ditt namn här"]
[null,"Annan ägare"]
[null,"Annan ägare"]
[]
[null,"BORGENSMÄN (ANDRA ÄN ÄGARE)"," ","  "]
[null,"Borgensman 1"]
[null,"Borgensman 2"]
[null,"Borgensman 3"]